fUSD/lending_fUSD_20250906
["ID","MTS","AMOUNT","RATE_DAILY","PERIOD"]
[383857660,1757146251321,-43069.78678541,0.0004999,2]
[383857662,1757146251330,-594.66,0.00049999,30]
[383857664,1757146251340,-300.0,0.00049999,30]
[383857666,1757146251349,-300.0,0.00049999,30]
[383857668,1757146251359,-666.0,0.00049999,30]
[383857670,1757146251368,-87562.00781679,0.0005,120]
[383857672,1757146251377,-504.32319,0.0005,120]
[383857674,1757146251387,-25000.0,0.0005,120]
[383857676,1757146251396,-54756.68980325,0.0005,30]
[383857678,1757146251406,-4565.41199265,0.0005,120]
[383857680,1757146251415,-1144.45136546,0.0005,2]
[383857682,1757146251425,-556.57398268,0.0005,120]
[383857685,1757146251435,-200.0,0.0005,120]
[383857686,1757146251445,-300.0,0.0005,120]
[383857688,1757146251454,-2043.490306,0.0005,120]
[383857690,1757146251464,-2043.490306,0.0005,120]
[383857693,1757146251473,-240.981312,0.0005,15]
[383857694,1757146251483,-2070.792925,0.0005,120]
[383857697,1757146251493,-2043.490306,0.0005,120]
[383857699,1757146251502,-2070.792925,0.0005,120]
[383857700,1757146251511,-240.981312,0.0005,15]
[383857703,1757146251521,-2043.490306,0.0005,120]
[383857705,1757146251531,-2070.792925,0.0005,120]
[383857707,1757146251540,-240.981312,0.0005,15]
[383857709,1757146251550,-2070.792925,0.0005,120]
[383857711,1757146251559,-240.981312,0.0005,15]
[383857713,1757146251569,-271.541194,0.0005,120]
[383857715,1757146251579,-271.541194,0.0005,120]
[383857717,1757146251588,-271.541194,0.0005,120]
[383857719,1757146251598,-271.541194,0.0005,120]
[383857721,1757146251607,-151.0,0.0005,120]
[383857723,1757146251618,-254.533976,0.0005,120]
[383857725,1757146251627,-254.533976,0.0005,120]
[383857727,1757146251636,-715.719907,0.0005,120]
[383857729,1757146251645,-254.533976,0.0005,120]
[383857731,1757146251655,-715.719907,0.0005,120]
[383857733,1757146251664,-199.750129,0.0005,120]
[383857735,1757146251673,-151.0,0.0005,120]
[383857737,1757146251683,-254.533976,0.0005,120]
[383857739,1757146251692,-715.719907,0.0005,120]
[383857741,1757146251702,-199.750129,0.0005,120]
[383857743,1757146251711,-151.0,0.0005,120]
[383857745,1757146251720,-715.719907,0.0005,120]
[383857747,1757146251731,-199.750129,0.0005,120]
[383857748,1757146251740,-199.750129,0.0005,120]
[383857749,1757146251751,-160.219138,0.0005,120]
[383857750,1757146251761,-160.219138,0.0005,120]
[383857751,1757146251771,-151.0,0.0005,60]
[383857752,1757146251781,-160.219138,0.0005,120]
[383857753,1757146251791,-151.0,0.0005,60]
[383857754,1757146251800,-160.219138,0.0005,120]
[383857756,1757146251809,-151.0,0.0005,120]
[383857758,1757146251819,-151.0,0.0005,120]
[383857760,1757146251828,-151.0,0.0005,60]
[383857762,1757146251840,-151.0,0.0005,120]
[383857764,1757146251849,-151.0,0.0005,120]
[383857766,1757146251859,-151.0,0.0005,30]
[383857768,1757146251869,-151.0,0.0005,120]
[383857769,1757146251879,-151.0,0.0005,30]
[383857771,1757146251889,-151.0,0.0005,120]
[383857773,1757146251899,-151.0,0.0005,120]
[383857775,1757146251909,-151.0,0.0005,120]
[383857777,1757146251920,-900.0,0.00050231,120]
[383857779,1757146251930,-500.0,0.00050466,60]
[383857782,1757146251939,-189.39,0.00050552,120]
[383857784,1757146251949,-230.15612121,0.00050669,28]
[383857785,1757146251959,-1868.05,0.000507,30]
[383857788,1757146251969,-573.73217034,0.00050716,120]
[383857790,1757146251978,-500.0,0.00050765,60]
[383857792,1757146251988,-800.0,0.0005088,120]
[383857794,1757146251998,-500.0,0.00050975,60]
[383857796,1757146252008,-300.0,0.00050999,30]
[383857798,1757146252018,-300.0,0.00050999,30]
[383857800,1757146252027,-517.57753819,0.00050999,30]
[383857802,1757146252036,-553679.26,0.00051,120]
[383857804,1757146252046,-151.0,0.00051,120]
[383857806,1757146252055,-293.715389,0.00051,120]
[383857808,1757146252067,-151.0,0.00051,120]
[383857810,1757146252076,-151.0,0.00051,120]
[383857812,1757146252086,-151.817612,0.00051,120]
[383857814,1757146252096,-151.0,0.00051,120]
[383857816,1757146252105,-151.0,0.00051,120]
[383857818,1757146252115,-151.0,0.00051,120]
[383857820,1757146252125,-151.0,0.00051,120]
[383857822,1757146252135,-151.0,0.00051,120]
[383857824,1757146252144,-151.0,0.00051,120]
[383857826,1757146252153,-213.849627,0.00051,120]
[383857828,1757146252163,-151.0,0.00051,120]
[383857830,1757146252172,-151.0,0.00051,120]
[383857832,1757146252181,-151.0,0.00051,120]
[383857834,1757146252191,-151.0,0.00051,120]
[383857836,1757146252200,-151.0,0.00051,120]
[383857838,1757146252210,-151.0,0.00051,120]
[383857840,1757146252220,-151.0,0.00051,120]
[383857842,1757146252230,-151.0,0.00051,120]
[383857844,1757146252239,-151.0,0.00051,120]
[383857846,1757146252249,-151.0,0.00051,120]
[383857848,1757146252258,-278.015379,0.00051,120]
[383857850,1757146252268,-151.0,0.00051,120]
[383857852,1757146252277,-151.0,0.00051,120]
[383857854,1757146252287,-151.0,0.00051,120]
[383857856,1757146252296,-151.0,0.00051,120]
[383857858,1757146252305,-151.0,0.00051,120]
[383857860,1757146252316,-151.0,0.00051,120]
[383857862,1757146252325,-151.0,0.00051,120]
[383857864,1757146252335,-170.97795,0.00051,120]
[383857866,1757146252344,-170.97795,0.00051,120]
[383857868,1757146252354,-170.97795,0.00051,120]
[383857870,1757146252363,-170.97795,0.00051,120]
[383857872,1757146252372,-151.0,0.00051,120]
[383857874,1757146252382,-151.0,0.00051,120]
[383857876,1757146252391,-151.0,0.00051,120]
[383857878,1757146252401,-151.0,0.00051,120]
[383857880,1757146252410,-151.0,0.00051,120]
[383857882,1757146252420,-151.0,0.00051,120]
[383857884,1757146252429,-151.0,0.00051,120]
[383857886,1757146252439,-151.0,0.00051,120]
[383857888,1757146252449,-151.0,0.00051,120]
[383857890,1757146252459,-151.0,0.00051,120]
[383857892,1757146252468,-251.249865,0.00051,120]
[383857894,1757146252477,-245.349896,0.00051,120]
[383857896,1757146252487,-151.0,0.00051,120]
[383857898,1757146252496,-239.524423,0.00051,120]
[383857900,1757146252505,-192.26024,0.00051,120]
[383857902,1757146252514,-192.26024,0.00051,120]
[383857904,1757146252524,-192.26024,0.00051,120]
[383857906,1757146252533,-192.26024,0.00051,120]
[383857908,1757146252543,-151.0,0.00051,120]
[383857910,1757146252551,-160.237204,0.00051,120]
[383857912,1757146252560,-151.0,0.00051,120]
[383857914,1757146252570,-184.492926,0.00051,120]
[383857916,1757146252579,-159.492881,0.00051,120]
[383857918,1757146252589,-151.0,0.00051,120]
[383857920,1757146252598,-151.0,0.00051,120]
[383857922,1757146252607,-151.0,0.00051,120]
[383857924,1757146252617,-151.0,0.00051,120]
[383857926,1757146252626,-151.0,0.00051,120]
[383857928,1757146252636,-151.0,0.00051,120]
[383857930,1757146252645,-151.0,0.00051,120]
[383857932,1757146252655,-151.0,0.00051,120]
[383857934,1757146252664,-151.0,0.00051,120]
[383857936,1757146252674,-151.0,0.00051,2]
[383857938,1757146252683,-151.0,0.00051,120]
[383857940,1757146252694,-151.0,0.00051,2]
[383857942,1757146252703,-151.0,0.00051,120]
[383857944,1757146252713,-151.0,0.00051,120]
[383857946,1757146252723,-151.0,0.00051,120]
[383857949,1757146252732,-151.0,0.00051,120]
[383857951,1757146252742,-151.0,0.00051,60]
[383857952,1757146252751,-233.513658,0.00051,120]
[383857955,1757146252761,-151.0,0.00051,120]
[383857957,1757146252771,-151.0,0.00051,120]
[383857959,1757146252780,-151.0,0.00051,120]
[383857961,1757146252790,-151.0,0.00051,120]
[383857962,1757146252799,-151.0,0.00051,120]
[383857964,1757146252808,-151.0,0.00051,120]
[383857967,1757146252818,-151.0,0.00051,120]
[383857969,1757146252828,-151.0,0.00051,120]
[383857971,1757146252840,-151.0,0.00051,120]
[383857973,1757146252851,-151.0,0.00051,120]
[383857975,1757146252860,-258.237912,0.00051,120]
[383857977,1757146252870,-151.0,0.00051,120]
[383857979,1757146252880,-151.0,0.00051,120]
[383857981,1757146252890,-700.503592,0.00051,120]
[383857983,1757146252900,-151.0,0.00051,120]
[383857985,1757146252909,-158.429723,0.00051,120]
[383857986,1757146252919,-700.503592,0.00051,120]
[383857987,1757146252930,-151.0,0.00051,120]
[383857988,1757146252940,-700.503592,0.00051,120]
[383857989,1757146252950,-700.503592,0.00051,120]
[383857990,1757146252959,-151.0,0.00051,120]
[383857991,1757146252968,-151.0,0.00051,120]
[383857992,1757146252978,-151.0,0.00051,120]
[383857994,1757146252987,-151.0,0.00051,120]
[383857995,1757146252996,-151.0,0.00051,120]
[383858003,1757146253060,-151.0,0.00051,120]
[383858005,1757146253070,-333.219907,0.00051,120]
[383858007,1757146253079,-333.219907,0.00051,120]
[383858009,1757146253089,-333.219907,0.00051,120]
[383858011,1757146253099,-333.219907,0.00051,120]
[383858013,1757146253108,-238.236622,0.00051,120]
[383858015,1757146253117,-238.236622,0.00051,120]
[383858017,1757146253128,-238.236622,0.00051,120]
[383858020,1757146253138,-238.236622,0.00051,120]
[383858022,1757146253147,-151.0,0.00051,120]
[383858024,1757146253157,-205.643086,0.00051,120]
[383858025,1757146253167,-194.598617,0.00051,120]
[383858028,1757146253176,-151.0,0.00051,120]
[383858029,1757146253185,-194.598617,0.00051,120]
[383858031,1757146253195,-151.0,0.00051,120]
[383858033,1757146253204,-194.598617,0.00051,120]
[383858035,1757146253213,-151.0,0.00051,120]
[383858037,1757146253222,-151.0,0.00051,120]
[383858039,1757146253231,-194.598617,0.00051,120]
[383858041,1757146253240,-151.0,0.00051,120]
[383858043,1757146253250,-151.0,0.00051,120]
[383858045,1757146253260,-151.0,0.00051,120]
[383858047,1757146253269,-151.0,0.00051,120]
[383858049,1757146253279,-195.244072,0.00051,120]
[383858051,1757146253288,-659.946177,0.00051,120]
[383858053,1757146253298,-7493.12,0.00051,14]
[383858055,1757146253308,-659.946177,0.00051,120]
[383858057,1757146253317,-659.946177,0.00051,120]
[383858059,1757146253326,-659.946177,0.00051,120]
[383858061,1757146253336,-151.0,0.00051,120]
[383858063,1757146253345,-213.434917,0.00051,120]
[383858065,1757146253354,-747.978665,0.00051,120]
[383858067,1757146253363,-747.978665,0.00051,120]
[383858069,1757146253373,-747.978665,0.00051,120]
[383858071,1757146253382,-339.481056,0.00051,120]
[383858073,1757146253392,-747.978665,0.00051,120]
[383858075,1757146253402,-339.481056,0.00051,120]
[383858077,1757146253412,-151.0,0.00051,10]
[383858079,1757146253422,-151.0,0.00051,120]
[383858081,1757146253431,-339.481056,0.00051,120]
[383858083,1757146253440,-173.482653,0.00051,120]
[383858085,1757146253450,-152.651315,0.00051,120]
[383858087,1757146253460,-151.0,0.00051,120]
[383858089,1757146253469,-154.498351,0.00051,120]
[383858091,1757146253479,-339.481056,0.00051,120]
[383858093,1757146253488,-173.482653,0.00051,120]
[383858095,1757146253497,-151.0,0.00051,120]
[383858096,1757146253506,-173.482653,0.00051,120]
[383858098,1757146253516,-245.78619,0.00051,120]
[383858099,1757146253526,-173.482653,0.00051,120]
[383858101,1757146253535,-245.78619,0.00051,120]
[383858102,1757146253545,-245.78619,0.00051,120]
[383858104,1757146253555,-151.0,0.00051,120]
[383858105,1757146253564,-210.656511,0.00051,120]
[383858107,1757146253574,-245.78619,0.00051,120]
[383858108,1757146253583,-201.482259,0.00051,120]
[383858110,1757146253592,-210.656511,0.00051,120]
[383858111,1757146253602,-151.0,0.00051,120]
[383858113,1757146253612,-346.418084,0.00051,120]
[383858114,1757146253622,-201.482259,0.00051,120]
[383858116,1757146253632,-644.322575,0.00051,120]
[383858118,1757146253642,-210.656511,0.00051,120]
[383858119,1757146253651,-151.0,0.00051,120]
[383858121,1757146253661,-151.0,0.00051,120]
[383858122,1757146253670,-346.418084,0.00051,120]
[383858124,1757146253679,-201.482259,0.00051,120]
[383858125,1757146253688,-210.656511,0.00051,120]
[383858127,1757146253698,-644.322575,0.00051,120]
[383858128,1757146253707,-151.0,0.00051,120]
[383858130,1757146253716,-346.418084,0.00051,120]
[383858131,1757146253726,-201.482259,0.00051,120]
[383858133,1757146253735,-644.322575,0.00051,120]
[383858134,1757146253745,-151.0,0.00051,120]
[383858136,1757146253754,-346.418084,0.00051,120]
[383858138,1757146253763,-644.322575,0.00051,120]
[383858139,1757146253772,-151.0,0.00051,10]
[383858141,1757146253782,-331.983944,0.00051,120]
[383858143,1757146253791,-331.983944,0.00051,120]
[383858144,1757146253800,-331.983944,0.00051,120]
[383858146,1757146253810,-331.983944,0.00051,120]
[383858147,1757146253820,-172.287321,0.00051,120]
[383858149,1757146253829,-172.287321,0.00051,120]
[383858151,1757146253841,-172.287321,0.00051,120]
[383858152,1757146253851,-172.287321,0.00051,120]
[383858154,1757146253861,-151.0,0.00051,120]
[383858155,1757146253870,-151.0,0.00051,120]
[383858157,1757146253880,-812.172578,0.00051,120]
[383858159,1757146253890,-151.0,0.00051,120]
[383858161,1757146253900,-812.172578,0.00051,120]
[383858162,1757146253910,-812.172578,0.00051,120]
[383858164,1757146253921,-812.172578,0.00051,120]
[383858166,1757146253930,-223.99356,0.00051,120]
[383858167,1757146253940,-223.99356,0.00051,120]
[383858169,1757146253950,-151.0,0.00051,2]
[383858171,1757146253960,-223.99356,0.00051,120]
[383858172,1757146253970,-151.0,0.00051,2]
[383858174,1757146253979,-223.99356,0.00051,120]
[383858176,1757146253989,-790.624522,0.00051,120]
[383858177,1757146253998,-790.624522,0.00051,120]
[383858179,1757146254008,-151.0,0.00051,120]
[383858180,1757146254017,-790.624522,0.00051,120]
[383858182,1757146254027,-581.198494,0.00051,120]
[383858184,1757146254036,-155.823748,0.00051,120]
[383858185,1757146254045,-151.0,0.00051,120]
[383858187,1757146254054,-790.624522,0.00051,120]
[383858188,1757146254064,-581.198494,0.00051,120]
[383858190,1757146254074,-151.0,0.00051,120]
[383858192,1757146254083,-581.198494,0.00051,120]
[383858194,1757146254093,-156.272538,0.00051,120]
[383858195,1757146254103,-581.198494,0.00051,120]
[383858197,1757146254113,-151.0,0.00051,120]
[383858199,1757146254123,-151.0,0.00051,120]
[383858200,1757146254132,-151.86608,0.00051,120]
[383858202,1757146254142,-151.86608,0.00051,120]
[383858204,1757146254152,-151.0,0.00051,120]
[383858205,1757146254162,-151.86608,0.00051,120]
[383858207,1757146254172,-151.0,0.00051,120]
[383858208,1757146254181,-151.86608,0.00051,120]
[383858210,1757146254191,-151.0,0.00051,120]
[383858212,1757146254203,-151.0,0.00051,120]
[383858213,1757146254212,-702.786079,0.00051,120]
[383858215,1757146254222,-238.379131,0.00051,120]
[383858217,1757146254231,-238.379131,0.00051,120]
[383858218,1757146254241,-702.786079,0.00051,120]
[383858220,1757146254251,-238.379131,0.00051,120]
[383858222,1757146254260,-702.786079,0.00051,120]
[383858223,1757146254270,-238.379131,0.00051,120]
[383858225,1757146254279,-702.786079,0.00051,120]
[383858227,1757146254289,-151.0,0.00051,120]
[383858229,1757146254299,-160.209909,0.00051,120]
[383858231,1757146254308,-662.448502,0.00051,120]
[383858233,1757146254320,-662.448502,0.00051,120]
[383858234,1757146254330,-662.448502,0.00051,120]
[383858235,1757146254339,-662.448502,0.00051,120]
[383858236,1757146254348,-2754.375304,0.00051,120]
[383858237,1757146254357,-358.152526,0.00051,120]
[383858238,1757146254367,-2754.375304,0.00051,120]
[383858239,1757146254376,-358.152526,0.00051,120]
[383858240,1757146254385,-1748.103596,0.00051,120]
[383858241,1757146254395,-151.0,0.00051,120]
[383858242,1757146254404,-2754.375304,0.00051,120]
[383858243,1757146254413,-1748.103596,0.00051,120]
[383858244,1757146254423,-358.152526,0.00051,120]
[383858245,1757146254432,-2754.375304,0.00051,120]
[383858246,1757146254442,-1748.103596,0.00051,120]
[383858247,1757146254451,-358.152526,0.00051,120]
[383858248,1757146254461,-1748.103596,0.00051,120]
[383858250,1757146254471,-151.0,0.00051,120]
[383858251,1757146254480,-2337.394473,0.00051,120]
[383858253,1757146254490,-151.0,0.00051,120]
[383858255,1757146254500,-2337.394473,0.00051,120]
[383858257,1757146254509,-151.0,0.00051,120]
[383858259,1757146254519,-2337.394473,0.00051,120]
[383858261,1757146254529,-5131.000149,0.00051,30]
[383858263,1757146254539,-2337.394473,0.00051,120]
[383858265,1757146254549,-5131.000149,0.00051,30]
[383858267,1757146254558,-558.060746,0.00051,120]
[383858269,1757146254568,-5131.000149,0.00051,30]
[383858271,1757146254578,-558.060746,0.00051,120]
[383858273,1757146254588,-170.954605,0.00051,30]
[383858275,1757146254598,-5131.000149,0.00051,30]
[383858277,1757146254608,-151.0,0.00051,120]
[383858279,1757146254618,-558.060746,0.00051,120]
[383858281,1757146254628,-151.0,0.00051,60]
[383858283,1757146254638,-170.954605,0.00051,30]
[383858285,1757146254647,-151.0,0.00051,60]
[383858287,1757146254657,-558.060746,0.00051,120]
[383858289,1757146254670,-151.0,0.00051,120]
[383858291,1757146254686,-170.954605,0.00051,30]
[383858293,1757146254696,-151.0,0.00051,60]
[383858295,1757146254706,-208.186397,0.00051,120]
[383858297,1757146254715,-170.954605,0.00051,30]
[383858299,1757146254725,-224.810867,0.00051,60]
[383858301,1757146254742,-625.838594,0.00051,120]
[383858303,1757146254758,-625.838594,0.00051,120]
[383858305,1757146254768,-625.838594,0.00051,120]
[383858307,1757146254778,-625.838594,0.00051,120]
[383858309,1757146254788,-624.690439,0.00051,120]
[383858311,1757146254798,-624.690439,0.00051,120]
[383858313,1757146254809,-624.690439,0.00051,120]
[383858315,1757146254819,-624.690439,0.00051,120]
[383858317,1757146254828,-309.29654756,0.00051186,2]
[383858319,1757146254841,-151.52,0.00051302,120]
[383858321,1757146254852,-500.0,0.00051588,60]
[383858323,1757146254862,-500.0,0.00051831,60]
[383858325,1757146254872,-280.18825448,0.0005188,120]
[383858327,1757146254883,-211.46305545,0.00051999,60]
[383858329,1757146254893,-1795.98079813,0.00052,120]
[383858331,1757146254903,-2532.7,0.00052,30]
[383858333,1757146254913,-744.49865575,0.000521,2]
[383858335,1757146254923,-308.18501051,0.00052182,30]
[383858337,1757146254933,-300.0,0.00052182,30]
[383858339,1757146254943,-151.0,0.00052183,120]
[383858341,1757146254954,-444.131247,0.00052183,120]
[383858343,1757146254963,-444.131247,0.00052183,120]
[383858345,1757146254973,-444.131247,0.00052183,120]
[383858347,1757146254982,-444.131247,0.00052183,120]
[383858349,1757146254992,-151.0,0.00052183,120]
[383858351,1757146255001,-262.482971,0.00052183,120]
[383858353,1757146255011,-262.482971,0.00052183,120]
[383858355,1757146255020,-262.482971,0.00052183,120]
[383858357,1757146255030,-262.482971,0.00052183,120]
[383858359,1757146255039,-151.0,0.00052183,120]
[383858361,1757146255049,-247.0815,0.00052183,120]
[383858363,1757146255059,-151.0,0.00052183,120]
[383858365,1757146255069,-247.0815,0.00052183,120]
[383858367,1757146255079,-247.0815,0.00052183,120]
[383858369,1757146255089,-338.883,0.00052183,120]
[383858371,1757146255099,-247.0815,0.00052183,120]
[383858374,1757146255108,-338.883,0.00052183,120]
[383858376,1757146255118,-338.883,0.00052183,120]
[383858378,1757146255128,-338.883,0.00052183,120]
[383858380,1757146255138,-151.0,0.00052183,120]
[383858382,1757146255148,-151.0,0.00052183,120]
[383858384,1757146255158,-500.0,0.00052256,60]
[383858386,1757146255168,-300.0,0.00052499,30]
[383858388,1757146255178,-3000.0,0.000525,120]
[383858390,1757146255188,-320.74051982,0.00052555,2]
[383858392,1757146255198,-189.39,0.0005273,120]
[383858394,1757146255209,-579.64626134,0.00053,2]
[383858396,1757146255219,-500.0,0.00053006,60]
[383858398,1757146255229,-246.8707692,0.00053197,62]
[383858400,1757146255239,-151.0,0.000532,120]
[383858402,1757146255249,-449.11450347,0.0005331,2]
[383858405,1757146255259,-500.0,0.00053357,60]
[383858407,1757146255269,-1500.0,0.00053512,120]
[383858409,1757146255278,-602.77478822,0.00053656,53]
[383858411,1757146255288,-230.15612121,0.00053746,28]
[383858413,1757146255297,-500.0,0.00053767,90]
[383858414,1757146255307,-500.0,0.00053847,60]
[383858417,1757146255317,-2114.68,0.000539,30]
[383858418,1757146255326,-332.60791905,0.00053924,2]
[383858421,1757146255336,-6026.52105983,0.00053963,120]
[383858423,1757146255346,-160.5,0.00053975,2]
[383858425,1757146255356,-20000.0,0.00054,120]
[383858427,1757146255365,-500.0,0.00054041,90]
[383858429,1757146255375,-500.0,0.00054315,90]
[383858431,1757146255384,-500.0,0.00054405,60]
[383858433,1757146255394,-3000.0,0.000545,120]
[383858435,1757146255404,-500.0,0.00054589,90]
[383858437,1757146255413,-1801.05,0.000547,14]
[383858439,1757146255423,-500.0,0.00054724,60]
[383858441,1757146255432,-1054.49050297,0.00054793,90]
[383858443,1757146255441,-401.76111576,0.00054794,120]
[383858445,1757146255451,-400.0,0.00054794,120]
[383858447,1757146255460,-400.0,0.00054794,120]
[383858449,1757146255469,-402.65722631,0.00054794,120]
[383858451,1757146255479,-400.0,0.00054794,120]
[383858453,1757146255489,-500.0,0.00054794,120]
[383858455,1757146255498,-411.76660259,0.00054794,120]
[383858457,1757146255507,-414.47325978,0.00054794,120]
[383858459,1757146255517,-400.0,0.00054794,120]
[383858461,1757146255526,-400.0,0.00054794,120]
[383858463,1757146255536,-400.0,0.00054794,120]
[383858465,1757146255546,-400.82343667,0.00054794,120]
[383858467,1757146255555,-400.0,0.00054794,120]
[383858469,1757146255565,-400.0,0.00054794,120]
[383858471,1757146255574,-401.46553936,0.00054794,120]
[383858473,1757146255584,-400.0,0.00054794,120]
[383858475,1757146255593,-400.0,0.00054794,120]
[383858477,1757146255603,-400.0,0.00054794,120]
[383858479,1757146255612,-400.0,0.00054794,120]
[383858482,1757146255622,-403.05609603,0.00054794,120]
[383858483,1757146255632,-400.0,0.00054794,120]
[383858486,1757146255642,-402.06913911,0.00054794,120]
[383858488,1757146255653,-401.56046561,0.00054794,120]
[383858490,1757146255663,-409.94741161,0.00054794,120]
[383858492,1757146255672,-401.33778397,0.00054794,120]
[383858494,1757146255681,-400.0,0.00054794,120]
[383858496,1757146255691,-208.42730606,0.00054794,120]
[383858498,1757146255700,-400.0,0.00054794,2]
[383858500,1757146255710,-400.0,0.00054794,120]
[383858502,1757146255720,-400.0,0.00054794,120]
[383858504,1757146255732,-402.38420718,0.00054794,120]
[383858506,1757146255742,-400.0,0.00054794,120]
[383858508,1757146255752,-400.0,0.00054794,120]
[383858510,1757146255762,-402.52317558,0.00054794,120]
[383858512,1757146255772,-400.79688209,0.00054794,120]
[383858514,1757146255781,-500.0,0.00054794,120]
[383858516,1757146255791,-360.10802821,0.00054794,120]
[383858518,1757146255800,-400.0,0.00054794,120]
[383858520,1757146255810,-401.78023214,0.00054794,120]
[383858522,1757146255819,-400.0,0.00054794,120]
[383858524,1757146255829,-401.12064936,0.00054794,120]
[383858526,1757146255839,-400.0,0.00054794,120]
[383858528,1757146255851,-400.0,0.00054794,120]
[383858530,1757146255861,-400.0,0.00054794,120]
[383858532,1757146255872,-400.0,0.00054794,120]
[383858534,1757146255883,-403.19915438,0.00054794,120]
[383858536,1757146255893,-210.47147096,0.00054794,7]
[383858538,1757146255902,-402.81163659,0.00054794,120]
[383858540,1757146255912,-402.25992269,0.00054794,120]
[383858543,1757146255922,-400.0,0.00054794,120]
[383858545,1757146255933,-405.72348869,0.00054794,120]
[383858547,1757146255942,-400.0,0.00054794,120]
[383858549,1757146255951,-500.0,0.00054794,120]
[383858551,1757146255961,-400.0,0.00054794,120]
[383858553,1757146255970,-500.0,0.00054794,120]
[383858555,1757146255980,-511.07830417,0.00054794,120]
[383858557,1757146255990,-400.0,0.00054794,120]
[383858559,1757146255999,-400.0,0.00054794,120]
[383858561,1757146256009,-400.0,0.00054794,120]
[383858563,1757146256019,-403.30458217,0.00054794,120]
[383858565,1757146256028,-509.12251161,0.00054794,120]
[383858567,1757146256037,-400.0,0.00054794,120]
[383858569,1757146256047,-400.0,0.00054794,120]
[383858571,1757146256057,-400.0,0.00054794,120]
[383858573,1757146256067,-151.0,0.00054794,120]
[383858575,1757146256077,-400.0,0.00054794,120]
[383858577,1757146256087,-400.0,0.00054794,120]
[383858579,1757146256096,-400.0,0.00054794,120]
[383858581,1757146256105,-406.85551023,0.00054794,120]
[383858583,1757146256115,-400.0,0.00054794,120]
[383858585,1757146256125,-400.0,0.00054794,120]
[383858587,1757146256134,-400.0,0.00054794,120]
[383858589,1757146256144,-402.16243214,0.00054794,120]
[383858591,1757146256154,-400.0,0.00054794,120]
[383858593,1757146256163,-403.00165426,0.00054794,120]
[383858595,1757146256173,-400.0,0.00054794,120]
[383858597,1757146256182,-400.0,0.00054794,120]
[383858599,1757146256192,-400.0,0.00054794,120]
[383858602,1757146256203,-401.95306746,0.00054794,120]
[383858604,1757146256213,-400.0,0.00054794,120]
[383858606,1757146256222,-400.0,0.00054794,120]
[383858608,1757146256232,-400.0,0.00054794,120]